fUST/lending_fUST_20250310
["ID","MTS","AMOUNT","RATE_DAILY","PERIOD"]
[355782465,1741558241729,-398.0,0.00052439,2]
[355782466,1741558241739,-1000.0,0.00052502,60]
[355782467,1741558241749,-500.0,0.00052601,120]
[355782468,1741558241758,-5890.77499389,0.00052601,2]
[355782469,1741558241768,-9661.76,0.00052602,7]
[355782470,1741558241777,-500.0,0.00052602,120]
[355782471,1741558241787,-500.0,0.00052602,60]
[355782472,1741558241796,-500.0,0.00052602,120]
[355782473,1741558241806,-500.0,0.00052602,120]
[355782474,1741558241816,-500.0,0.00052602,120]
[355782475,1741558241825,-1514.2,0.00052602,120]
[355782476,1741558241835,-654.49,0.00052602,120]
[355782477,1741558241847,-500.0,0.00052602,120]
[355782478,1741558241857,-500.0,0.00052602,120]
[355782479,1741558241866,-520.51,0.00052602,120]
[355782480,1741558241876,-500.0,0.00052602,120]
[355782481,1741558241887,-160.0,0.00052642,4]
[355782482,1741558241896,-500.0,0.00052669,30]
[355782483,1741558241906,-150.0,0.00052724,30]
[355782484,1741558241915,-500.0,0.00053149,120]
[355782485,1741558241925,-9661.76,0.0005315,7]
[355782486,1741558241935,-500.0,0.0005315,120]
[355782487,1741558241945,-500.0,0.0005315,60]
[355782488,1741558241955,-500.0,0.0005315,120]
[355782489,1741558241965,-500.0,0.0005315,120]
[355782490,1741558241974,-500.0,0.0005315,120]
[355782491,1741558241984,-999.0,0.0005315,120]
[355782492,1741558241994,-1514.2,0.0005315,120]
[355782493,1741558242004,-654.49,0.0005315,120]
[355782494,1741558242014,-500.0,0.0005315,120]
[355782495,1741558242023,-500.0,0.0005315,120]
[355782496,1741558242033,-520.51,0.0005315,120]
[355782497,1741558242043,-500.0,0.0005315,120]
[355782498,1741558242052,-500.0,0.00053173,10]
[355782499,1741558242062,-500.0,0.00053173,10]
[355782500,1741558242071,-529.16529002,0.00053173,10]
[355782501,1741558242080,-500.0,0.00053173,10]
[355782502,1741558242090,-500.0,0.00053173,10]
[355782503,1741558242100,-9302.25,0.000532,30]
[355782504,1741558242109,-200.0,0.00053496,120]
[355782505,1741558242119,-5000.0,0.00053657,14]
[355782506,1741558242128,-500.0,0.00053673,10]
[355782507,1741558242138,-4378.89013095,0.00053688,4]
[355782508,1741558242148,-1310.08132662,0.00053688,4]
[355782509,1741558242157,-500.0,0.00053697,120]
[355782510,1741558242167,-9661.76,0.00053698,7]
[355782511,1741558242176,-500.0,0.00053698,120]
[355782512,1741558242186,-500.0,0.00053698,60]
[355782513,1741558242197,-500.0,0.00053698,120]
[355782514,1741558242207,-500.0,0.00053698,120]
[355782515,1741558242217,-500.0,0.00053698,120]
[355782516,1741558242227,-1514.2,0.00053698,120]
[355782517,1741558242236,-654.49,0.00053698,120]
[355782518,1741558242246,-500.0,0.00053698,120]
[355782519,1741558242255,-500.0,0.00053698,120]
[355782520,1741558242266,-520.51,0.00053698,120]
[355782521,1741558242276,-500.0,0.00053698,120]
[355782522,1741558242287,-418.93,0.000537,30]
[355782523,1741558242296,-453.29,0.000537,30]
[355782524,1741558242306,-231.47,0.000537,30]
[355782525,1741558242316,-153.76,0.000539,54]
[355782526,1741558242326,-153.76,0.000539,54]
[355782527,1741558242336,-298.0,0.00054,120]
[355782528,1741558242345,-349.0,0.00054,120]
[355782529,1741558242355,-150.0,0.00054093,30]
[355782530,1741558242466,-500.0,0.00054245,120]
[355782531,1741558242476,-9661.76,0.00054246,7]
[355782532,1741558242486,-500.0,0.00054246,120]
[355782533,1741558242495,-500.0,0.00054246,60]
[355782534,1741558242505,-500.0,0.00054246,120]
[355782535,1741558242515,-500.0,0.00054246,120]
[355782536,1741558242525,-500.0,0.00054246,120]
[355782537,1741558242535,-999.0,0.00054246,120]
[355782538,1741558242544,-1514.2,0.00054246,120]
[355782539,1741558242554,-654.49,0.00054246,120]
[355782540,1741558242563,-500.0,0.00054246,120]
[355782541,1741558242573,-500.0,0.00054246,120]
[355782542,1741558242582,-520.51,0.00054246,120]
[355782543,1741558242591,-500.0,0.00054246,120]
[355782544,1741558242601,-200.0,0.00054545,120]
[355782545,1741558242611,-500.0,0.00054793,120]
[355782546,1741558242620,-9661.76,0.00054794,7]
[355782547,1741558242630,-500.0,0.00054794,120]
[355782548,1741558242640,-500.0,0.00054794,60]
[355782549,1741558242650,-500.0,0.00054794,120]
[355782550,1741558242660,-500.0,0.00054794,120]
[355782551,1741558242670,-500.0,0.00054794,120]
[355782552,1741558242679,-1514.2,0.00054794,120]
[355782553,1741558242688,-654.49,0.00054794,120]
[355782554,1741558242698,-500.0,0.00054794,120]
[355782555,1741558242708,-500.0,0.00054794,120]
[355782556,1741558242717,-666.0,0.00054794,120]
[355782557,1741558242727,-520.51,0.00054794,120]
[355782558,1741558242737,-474.46127128,0.00054794,120]
[355782559,1741558242746,-500.0,0.00054794,120]
[355782560,1741558242757,-500.0,0.00054794,120]
[355782561,1741558242768,-500.0,0.00054794,120]
[355782562,1741558242781,-500.0,0.00054794,120]
[355782563,1741558242791,-500.0,0.00054794,120]
[355782564,1741558242801,-500.0,0.00054794,120]
[355782565,1741558242811,-500.0,0.00054794,120]
[355782566,1741558242821,-500.0,0.00054794,120]
[355782567,1741558242830,-500.0,0.00054794,120]
[355782568,1741558242843,-500.0,0.00054794,120]
[355782569,1741558242854,-500.0,0.00054794,120]
[355782570,1741558242863,-500.0,0.00054794,120]
[355782571,1741558242872,-500.0,0.00054794,120]
[355782572,1741558242883,-500.0,0.00054794,120]
[355782573,1741558242894,-500.0,0.00054794,120]
[355782574,1741558242903,-500.0,0.00054794,120]
[355782575,1741558242912,-254.78819745,0.000551,15]
[355782576,1741558242921,-162.98909011,0.000551,5]
[355782577,1741558242932,-500.0,0.00055164,120]
[355782578,1741558242942,-1000.0,0.00055246,15]
[355782579,1741558242951,-1000.0,0.00055246,2]
[355782580,1741558242962,-7721.96200168,0.00055249,120]
[355782581,1741558242972,-5000.0,0.00055249,120]
[355782582,1741558242981,-5000.0,0.00055249,120]
[355782583,1741558242990,-5000.0,0.00055249,120]
[355782584,1741558243000,-5000.0,0.00055249,120]
[355782585,1741558243010,-4378.89013095,0.00055332,4]
[355782586,1741558243020,-1310.08132662,0.00055332,4]
[355782587,1741558243030,-500.0,0.00055341,120]
[355782588,1741558243039,-9661.76,0.00055342,7]
[355782589,1741558243050,-500.0,0.00055342,120]
[355782590,1741558243059,-500.0,0.00055342,60]
[355782592,1741558243069,-289.717377,0.00055342,120]
[355782593,1741558243079,-500.0,0.00055342,120]
[355782594,1741558243088,-342.80520953,0.00055342,120]
[355782595,1741558243098,-999.0,0.00055342,120]
[355782596,1741558243108,-1514.2,0.00055342,120]
[355782597,1741558243118,-654.49,0.00055342,120]
[355782598,1741558243128,-500.0,0.00055342,120]
[355782599,1741558243138,-521.78375785,0.00055342,120]
[355782600,1741558243148,-520.51,0.00055342,120]
[355782601,1741558243157,-443.56454461,0.00055342,120]
[355782603,1741558243167,-398.0,0.00055439,2]
[355782604,1741558243176,-500.0,0.00055441,120]
[355782605,1741558243187,-165.8775875,0.00055463,30]
[355782606,1741558243197,-500.0,0.00055712,120]
[355782607,1741558243208,-265.77,0.000558,30]
[355782608,1741558243218,-229.94,0.000558,30]
[355782609,1741558243227,-160.0,0.00055817,5]
[355782610,1741558243238,-500.0,0.00055889,120]
[355782611,1741558243248,-9661.76,0.0005589,7]
[355782612,1741558243258,-500.0,0.0005589,120]
[355782614,1741558243268,-500.0,0.0005589,60]
[355782617,1741558243280,-500.0,0.0005589,120]
[355782619,1741558243289,-1514.2,0.0005589,120]
[355782622,1741558243299,-654.49,0.0005589,120]
[355782623,1741558243309,-176.67919511,0.0005589,120]
[355782624,1741558243318,-520.51,0.0005589,120]
[355782625,1741558243328,-298.0,0.00056,120]
[355782626,1741558243337,-349.0,0.00056,120]
[355782627,1741558243347,-500.0,0.00056152,10]
[355782628,1741558243356,-500.0,0.0005626,120]
[355782629,1741558243367,-153.76,0.000563,57]
[355782630,1741558243376,-153.76,0.000563,57]
[355782633,1741558243387,-503.03755376,0.00056329,14]
[355782635,1741558243396,-1332.8518728,0.00056402,120]
[355782637,1741558243406,-500.0,0.00056437,120]
[355782638,1741558243416,-9661.76,0.00056438,7]
[355782640,1741558243426,-231.45492812,0.00056438,120]
[355782642,1741558243435,-500.0,0.00056438,60]
[355782644,1741558243445,-500.0,0.00056438,120]
[355782647,1741558243454,-999.0,0.00056438,120]
[355782650,1741558243464,-1514.2,0.00056438,120]
[355782652,1741558243473,-654.49,0.00056438,120]
[355782653,1741558243483,-520.51,0.00056438,120]
[355782654,1741558243492,-500.0,0.00056808,120]
[355782655,1741558243502,-4378.89013095,0.00056976,5]
[355782656,1741558243511,-1310.08132662,0.00056976,5]
[355782657,1741558243521,-500.0,0.00056985,120]
[355782658,1741558243530,-9661.76,0.00056986,7]
[355782659,1741558243539,-500.0,0.00056986,60]
[355782660,1741558243548,-500.0,0.00056986,120]
[355782661,1741558243558,-1514.2,0.00056986,120]
[355782662,1741558243567,-654.49,0.00056986,120]
[355782663,1741558243577,-520.51,0.00056986,120]
[355782664,1741558243586,-613.41420808,0.00057,120]
[355782665,1741558243596,-9302.25,0.00057,30]
[355782666,1741558243605,-412.901065,0.00057174,2]
[355782667,1741558243614,-418.93,0.000572,30]
[355782668,1741558243623,-453.29,0.000572,30]
[355782669,1741558243632,-231.47,0.000572,30]
[355782670,1741558243641,-500.0,0.00057356,120]
[355782671,1741558243649,-150.0,0.00057373,15]
[355782672,1741558243659,-300.0,0.00057373,15]
[355782673,1741558243668,-4378.89013095,0.0005739,5]
[355782674,1741558243677,-1310.08132662,0.0005739,5]
[355782676,1741558243687,-50036.1063,0.000574,30]
[355782677,1741558243696,-559.0265757,0.00057506,60]
[355782679,1741558243706,-500.0,0.00057533,120]
[355782680,1741558243716,-9661.76,0.00057534,7]
[355782682,1741558243725,-500.0,0.00057534,60]
[355782683,1741558243735,-500.0,0.00057534,120]
[355782684,1741558243744,-999.0,0.00057534,120]
[355782685,1741558243755,-1514.2,0.00057534,120]
[355782686,1741558243764,-654.49,0.00057534,120]
[355782687,1741558243773,-520.51,0.00057534,120]
[355782688,1741558243783,-503.99558825,0.0005755,120]
[355782689,1741558243792,-500.0,0.0005755,120]
[355782690,1741558243802,-200.0,0.00057641,120]
[355782691,1741558243811,-151.0,0.000577,27]
[355782692,1741558243821,-500.0,0.00057904,120]
[355782693,1741558243831,-250.0,0.00057921,15]
[355782694,1741558243843,-600.0,0.00057921,15]
[355782695,1741558243853,-298.0,0.00058,120]
[355782696,1741558243863,-415.47240733,0.00058,60]
[355782697,1741558243872,-349.0,0.00058,120]
[355782698,1741558243883,-500.0,0.00058081,120]
[355782699,1741558243893,-9661.76,0.00058082,7]
[355782700,1741558243903,-500.0,0.00058082,60]
[355782701,1741558243912,-500.0,0.00058082,120]
[355782702,1741558243923,-1514.2,0.00058082,120]
[355782703,1741558243933,-654.49,0.00058082,120]
[355782704,1741558243942,-520.51,0.00058082,120]
[355782705,1741558243951,-183.873572,0.000583,2]
[355782706,1741558243961,-559.0265757,0.00058328,60]
[355782707,1741558243970,-559.0265757,0.00058328,60]
[355782708,1741558243980,-559.0265757,0.00058328,60]
[355782709,1741558243990,-1000.0,0.00058358,120]
[355782710,1741558243999,-463529.40067498,0.00058359,30]
[355782711,1741558244009,-505.73859896,0.00058359,120]
[355782712,1741558244019,-500.0,0.00058359,120]
[355782713,1741558244028,-398.0,0.00058439,2]
[355782714,1741558244038,-500.0,0.00058452,120]
[355782715,1741558244047,-350.0,0.00058468,15]
[355782716,1741558244057,-724.78405836,0.00058468,15]
[355782717,1741558244067,-4378.89013095,0.0005849,5]
[355782718,1741558244076,-1310.08132662,0.0005849,5]
[355782719,1741558244086,-2000.0,0.000585,120]
[355782720,1741558244096,-580.259763,0.00058552,2]
[355782721,1741558244106,-229.94,0.000586,30]
[355782722,1741558244115,-500.0,0.00058629,120]
[355782723,1741558244125,-563.83,0.0005863,120]
[355782724,1741558244134,-563.83,0.0005863,120]
[355782725,1741558244143,-563.83,0.0005863,120]
[355782726,1741558244153,-563.83,0.0005863,120]
[355782727,1741558244162,-563.83,0.0005863,120]
[355782728,1741558244172,-563.83,0.0005863,120]
[355782729,1741558244181,-563.83,0.0005863,120]
[355782730,1741558244191,-563.83,0.0005863,120]
[355782731,1741558244201,-563.83,0.0005863,120]
[355782732,1741558244210,-563.83,0.0005863,120]
[355782733,1741558244220,-563.83,0.0005863,120]
[355782734,1741558244229,-563.83,0.0005863,120]
[355782735,1741558244239,-563.83,0.0005863,120]
[355782736,1741558244248,-563.83,0.0005863,120]
[355782737,1741558244257,-563.83,0.0005863,120]
[355782738,1741558244267,-563.83,0.0005863,120]
[355782739,1741558244276,-563.83,0.0005863,120]
[355782740,1741558244286,-563.83,0.0005863,120]
[355782741,1741558244296,-563.83,0.0005863,120]
[355782742,1741558244305,-563.83,0.0005863,120]
[355782743,1741558244314,-563.83,0.0005863,120]
[355782744,1741558244324,-563.83,0.0005863,120]
[355782745,1741558244334,-563.83,0.0005863,120]
[355782746,1741558244343,-9661.76,0.0005863,7]
[355782747,1741558244352,-500.0,0.0005863,60]
[355782748,1741558244362,-583.83879291,0.0005863,120]
[355782749,1741558244372,-999.0,0.0005863,120]
[355782750,1741558244381,-1514.2,0.0005863,120]
[355782751,1741558244391,-654.49,0.0005863,120]
[355782752,1741558244401,-520.51,0.0005863,120]
[355782753,1741558244410,-694.53284559,0.00058652,15]
[355782754,1741558244419,-1000.0,0.00058652,15]
[355782755,1741558244429,-1000.0,0.00058652,14]
[355782756,1741558244438,-1000.0,0.00058652,14]
[355782757,1741558244448,-500.0,0.00058673,15]
[355782758,1741558244457,-150.0,0.00058673,15]
[355782759,1741558244467,-2036.0,0.000587,70]
[355782760,1741558244477,-500.0,0.000587,2]
[355782761,1741558244486,-153.76,0.000587,60]
[355782762,1741558244496,-153.76,0.000587,60]
[355782763,1741558244506,-153.76,0.000587,60]
[355782764,1741558244516,-153.76,0.000587,60]
[355782765,1741558244525,-153.76,0.000587,60]
[355782766,1741558244535,-153.76,0.000587,60]
[355782767,1741558244545,-150.57,0.000587,120]
[355782768,1741558244555,-265.77,0.000587,30]
[355782769,1741558244565,-156.80924409,0.000587,120]
[355782770,1741558244574,-500.0,0.000587,120]
[355782771,1741558244584,-150.57,0.000587,2]
[355782772,1741558244594,-150.57,0.000587,120]
[355782773,1741558244604,-150.57,0.000587,2]
[355782774,1741558244613,-500.0,0.000587,120]
[355782775,1741558244622,-500.0,0.00058727,2]
[355782776,1741558244631,-150.57,0.00058727,120]
[355782777,1741558244642,-695.95795553,0.00058727,120]
[355782778,1741558244651,-150.57,0.00058727,120]
[355782779,1741558244661,-500.0,0.00058727,120]
[355782780,1741558244672,-500.0,0.00058755,2]
[355782782,1741558244681,-150.57,0.00058755,120]
[355782783,1741558244691,-272.12745219,0.00058755,120]
[355782784,1741558244700,-500.0,0.00058755,120]
[355782785,1741558244710,-200.0,0.00058778,120]
[355782786,1741558244719,-500.0,0.00058782,2]
[355782787,1741558244729,-151.68134365,0.00058782,120]
[355782788,1741558244739,-757.923373,0.00058782,120]
[355782789,1741558244749,-162.3022402,0.000588,120]
[355782790,1741558244758,-500.0,0.0005881,2]
[355782791,1741558244768,-500.0,0.00058837,2]
[355782792,1741558244777,-500.0,0.00058864,2]
[355782793,1741558244788,-4378.89013095,0.0005889,5]
[355782794,1741558244798,-1310.08132662,0.0005889,5]
[355782795,1741558244808,-500.0,0.00058892,2]
[355782796,1741558244817,-160.69,0.000589,120]
[355782797,1741558244827,-9875.79839133,0.000589,2]
[355782798,1741558244838,-500.0,0.00058919,2]
[355782799,1741558244850,-1656.94264617,0.0005892,120]
[355782800,1741558244860,-1656.94264617,0.0005892,120]
[355782801,1741558244870,-1656.94264617,0.0005892,120]
[355782802,1741558244880,-1656.94264617,0.0005892,120]
[355782803,1741558244889,-1656.94264617,0.0005892,120]
[355782804,1741558244898,-1656.94264617,0.0005892,120]
[355782805,1741558244907,-1656.94264617,0.0005892,120]
[355782806,1741558244918,-1656.94264617,0.0005892,120]
[355782807,1741558244928,-500.0,0.00058947,2]
[355782808,1741558244938,-500.0,0.00058974,2]
[355782809,1741558244948,-61304.4618333,0.0005899,5]
[355782810,1741558244960,-18341.1385727,0.0005899,5]
[355782811,1741558244969,-160.0,0.00058993,6]
[355782812,1741558244978,-209.28658938,0.00058993,5]
[355782813,1741558244988,-500.0,0.00059,120]
[355782814,1741558244998,-83077.32436136,0.00059,30]
[355782815,1741558245119,-83077.32436136,0.00059,30]
[355782816,1741558245130,-11868.18919448,0.00059,30]
[355782817,1741558245139,-11868.18919448,0.00059,30]
[355782818,1741558245149,-205.0,0.00059,120]
[355782819,1741558245158,-313847.24979267,0.00059,30]
[355782820,1741558245221,-8180.0,0.00059,30]
[355782821,1741558245234,-191299.18268427,0.00059,30]
[355782822,1741558245244,-45002.06087782,0.00059,30]
[355782823,1741558245808,-9431.21620548,0.00059,30]
[355782824,1741558245825,-289.35999989,0.00059,30]
[355782825,1741558245837,-413.72189437,0.00059,30]
[355782826,1741558245851,-76179.5983683,0.00059,30]
[355782864,1741558247082,-398.0,0.00050623,120]
[355782865,1741558247092,-398.0,0.00050623,120]
[355782866,1741558247103,-398.0,0.00050623,120]
[355782867,1741558247112,-398.0,0.00050623,120]
[355782868,1741558247122,-398.0,0.00050623,120]
[355782869,1741558247131,-398.0,0.00050623,120]
[355782870,1741558247141,-398.0,0.00050623,120]
[355782871,1741558247151,-504.048653,0.00051342,120]
[355782872,1741558247162,-413.97,0.000527,30]
[355782873,1741558247171,-413.97,0.000558,30]
[355782874,1741558247181,-413.97,0.000583,30]
[355782875,1741558247191,-1732.4819848,0.00059,30]
[355782876,1741558247234,-136.20064091,0.00059,30]
[355782877,1741558247301,-81601.55340395,0.00059,30]
[355782878,1741558248108,-398.0,0.00050623,120]
[355782879,1741558248119,-398.0,0.00050623,120]
[355782880,1741558248129,-398.0,0.00050623,120]
[355782881,1741558248139,-398.0,0.00050623,120]
[355782882,1741558248150,-770.083952,0.00059,30]
[355782883,1741558249395,-43028.578845,0.00059,30]
[355782884,1741558249407,-167368.85774538,0.00059,30]
[355782885,1741558249419,-8183.9,0.00059,30]
[355782886,1741558335949,500.0,0.00033,10]
[355782887,1741558336907,500.0,0.0002802,2]
[355782888,1741558343234,500.0,0.00033,10]
[355782889,1741558343588,500.0,0.0002802,2]
[355782890,1741558651892,-453.11523847,0.00033,10]
[355782891,1741558958737,-46.88476153,0.00033,10]
[355782892,1741558958761,-103.11523847,0.00033,10]
[355782893,1741559006176,-500.0,0.0002802,2]
[355782894,1741559006202,-105.0,0.00033,10]
[355782895,1741559107996,-291.88476153,0.00033,10]
[355782896,1741559108020,-208.11523847,0.00037962,2]
[355782897,1741559156127,-1651.58772115,0.000379,8]
[355782898,1741559156150,-291.88476153,0.00037962,2]
[355782899,1741559156173,-190.51499035,0.00038153,109]
[355782900,1741559156195,-400.0,0.00038252,2]
[355782901,1741559156218,-1768.39864132,0.00038253,2]
[355782902,1741559156239,-261.43857204,0.00038253,2]
[355782903,1741559156259,-151.156,0.00038353,14]
[355782904,1741559156280,-182.479663,0.00038402,2]
[355782905,1741559156304,-186.795984,0.00038422,2]
[355782906,1741559156325,-500.0,0.00038973,5]
[355782907,1741559156346,-156.36,0.0003899,2]
[355782908,1741559156367,-156.36,0.0003899,2]
[355782909,1741559156394,-404.40496379,0.00038999,15]
[355782910,1741559156416,-500.0,0.00038999,15]
[355782911,1741559156444,-500.0,0.00038999,2]
[355782912,1741559156467,-500.0,0.00038999,2]
[355782913,1741559156494,-500.0,0.00038999,2]
[355782914,1741559156518,-436.53444927,0.00038999,2]
[355782915,1741559156545,-500.0,0.00038999,2]
[355782916,1741559156568,-500.0,0.00038999,2]
[355782917,1741559156594,-500.0,0.00038999,2]
[355782918,1741559156619,-250.0,0.00038999,2]
[355782919,1741559156640,-190.0,0.00039,2]
[355782920,1741559156660,-21656.05979387,0.00039,2]
[355782921,1741559156681,-811.43051182,0.000399,2]
[355782922,1741559156701,-500.0,0.0004,30]
[355782923,1741559156723,-560.0,0.00040877,5]
[355782924,1741559156744,-185.899,0.00041547,61]
[355782925,1741559156765,-1000.0,0.00044452,10]
[355782926,1741559156785,-156.36,0.0004499,2]
[355782927,1741559156807,-156.36,0.0004499,2]
[355782928,1741559156827,-156.36,0.0004499,2]
[355782929,1741559156849,-169.91892782,0.00044999,31]
[355782930,1741559156871,-1766.77610316,0.00045,2]
[355782933,1741559201146,-250.0,0.00044999,2]
[355782934,1741559201170,-159.61493881,0.00044999,2]
[355782935,1741559201193,-70.39288935,0.00045,2]
[355782937,1741559233129,-355.320852,0.0003589,2]
[355782938,1741559233151,-300.0,0.0004,2]
[355782939,1741559233174,-355.320852,0.00041211,2]
[355782940,1741559233198,-5284.1350063,0.00045,2]
[355782945,1741559347080,-6671.68747822,0.0002799,2]
[355782946,1741559347102,-300.0,0.00028499,2]
[355782947,1741559347123,-1362.63476853,0.000285,7]
[355782948,1741559347145,-162.0,0.00030763,2]
[355782949,1741559347168,-603.11523847,0.00033,10]
[355782950,1741559347202,-1336.542446,0.00036259,2]
[355783020,1741559432165,-203.4685256,0.00037084,2]
[355783022,1741559432176,-24900.0,0.00037876,2]
[355783024,1741559432185,-1626.84080641,0.000379,8]
[355783026,1741559432195,-397.958671,0.0004198,2]
[355783028,1741559432205,-500.0,0.00044658,10]
[355783030,1741559432216,-546.80117188,0.00044658,10]
[355783032,1741559432226,-500.0,0.00044658,2]
[355783035,1741559432235,-500.0,0.00044658,2]
[355783037,1741559432247,-12878.69600119,0.00045,2]
[355783039,1741559432257,-857.20470423,0.00045,2]
[355783041,1741559432266,-710.00169779,0.00045565,28]
[355783043,1741559432276,-444.42,0.00045655,30]
[355783045,1741559432286,-226.79,0.00045665,30]
[355783048,1741559432301,-1740.98,0.00045665,10]
[355783049,1741559432311,-3319.94,0.00045665,10]
[355783052,1741559432321,-533.3,0.00045665,30]
[355783054,1741559432331,-2766.62,0.00045665,10]
[355783056,1741559432341,-19380.6518884,0.00045665,3]
[355783058,1741559432351,-302.32645998,0.00045665,4]
[355783060,1741559432361,-547.39189824,0.00045673,2]
[355783062,1741559432372,-500.0,0.00045673,10]
[355783064,1741559432382,-500.0,0.00045673,10]
[355783066,1741559432391,-150.0,0.00045674,30]
[355783068,1741559432401,-24940.84757941,0.00045675,2]
[355783070,1741559432413,-264.58918118,0.00045675,2]
[355783072,1741559432424,-6181.78343487,0.00045675,2]
[355783113,1741559438060,-467.01379588,0.00037875,15]
[355783114,1741559438070,-300.60275708,0.00037875,2]
[355783115,1741559438084,-199.39724292,0.00037875,2]
[355783116,1741559438096,-356.79713006,0.00037875,15]
[355783117,1741559438107,-500.0,0.00037875,2]
[355783118,1741559438118,-500.0,0.00037875,2]
[355783120,1741559438130,-500.0,0.00037875,2]
[355783121,1741559438141,-312.05745833,0.00037875,2]
[355783122,1741559438153,-500.0,0.00037875,2]
[355783123,1741559438165,-500.0,0.00037875,2]
[355783124,1741559438177,-500.0,0.00037875,2]
[355783125,1741559438188,-500.0,0.00037875,2]
[355783126,1741559438200,-500.0,0.00037875,2]
[355783127,1741559438216,-500.0,0.00037875,2]
[355783128,1741559438228,-500.0,0.00037875,2]
[355783129,1741559438240,-500.0,0.00037875,2]
[355783130,1741559438253,-500.0,0.00037875,2]
[355783131,1741559438265,-500.0,0.00037875,2]
[355783132,1741559438276,-500.0,0.00037875,2]
[355783133,1741559438288,-500.0,0.00037875,2]
[355783134,1741559438301,-500.0,0.00037875,2]
[355783135,1741559438318,-500.0,0.00037875,2]
[355783136,1741559438330,-500.0,0.00037875,2]
[355783137,1741559438343,-500.0,0.00037875,2]
[355783138,1741559438355,-500.0,0.00037875,2]
[355783139,1741559438368,-500.0,0.00037875,2]
[355783140,1741559438380,-500.0,0.00037875,2]
[355783141,1741559438392,-500.0,0.00037875,2]
[355783142,1741559438404,-500.0,0.00037875,2]
[355783143,1741559438416,-500.0,0.00037875,2]
[355783144,1741559438427,-500.0,0.00037875,2]
[355783145,1741559438437,-500.0,0.00037875,2]
[355783146,1741559438447,-500.0,0.00037875,2]
[355783147,1741559438458,-500.0,0.00037875,2]
[355783148,1741559438470,-271.38615678,0.00037875,2]
[355783149,1741559438481,-500.0,0.00037875,2]
[355783150,1741559438492,-500.0,0.00037875,2]
[355783151,1741559438503,-749.96762976,0.00043575,2]
[355783152,1741559438515,-2305.51,0.00045665,10]
[355783153,1741559438526,-370.35,0.00045665,30]
[355783154,1741559438537,-190612.77980454,0.00045675,2]
[355783155,1741559438551,-362.64,0.000457,30]
[355783156,1741559438564,-185.18,0.000457,30]
[355783157,1741559438576,-335.14,0.000457,30]
[355783158,1741559438589,-264.44,0.000457,30]
[355783159,1741559438602,-332.21,0.000457,30]
[355783160,1741559438615,-355.320852,0.00046532,2]
[355783161,1741559438628,-500.0,0.00046575,120]
[355783162,1741559438641,-500.0,0.00046575,120]
[355783163,1741559438653,-500.0,0.00046575,120]
[355783164,1741559438666,-999.0,0.00046575,120]
[355783165,1741559438676,-150.0,0.00046575,10]
[355783166,1741559438687,-7441.8,0.000466,30]
[355783167,1741559438697,-165.8775875,0.00047044,30]
[355783168,1741559438708,-500.0,0.00047123,120]
[355783169,1741559438719,-500.0,0.00047123,120]